Cogmind - Beta 11 @@@ ROGUE MODE // 2022.03.23 @ 10:29:38 Player: Demise Result: Destroyed by 8R-AWN with 8R-AWN's Boregun Performance ------------- Evolutions (1) 500 Regions Visited (5) 1000 Robots Destroyed (79) 395 Value Destroyed (1790) 1790 Prototype IDs (44) 880 Alien Tech Used (0) 0 Bonus (279) 279 TOTAL SCORE: 4844 Bonus ------- High Alert Combat Kills 11 Aligned with FarCom 300 Friendly Fire -32 Cogmind --------- Core Integrity 0/400 Matter 55/300 Energy 280/280 System Corruption 0% Temperature Cool (0) Movement Treading (330) Ox2 Location -9/Exiles Parts ------- > --- POWER (1) -------- Heavy Ion Engine > --- PROPULSION (2) --- Armored Treads Combat Airjet > --- UTILITY (4) ------ High-capacity Storage Unit Target Analyzer Utility Shielding Hardened Light Armor Plating > --- WEAPON (2) ------- Improved Assault Rifle Improved Assault Rifle > --- INVENTORY (20) --- Heavy Ion Engine Combat Airjet Advanced Targeting Computer Hardened Light Armor Plating Improved Light Armor Plating System Shield Improved EM Shotgun Heavy Assault Rifle AWS/Gauss Grenade Launcher Improved Datajack Peak State ------------ > --- POWER ------------ Heavy Ion Engine > --- PROPULSION ------- Armored Treads Armored Treads > --- UTILITY ---------- High-capacity Storage Unit Utility Shielding Hardened Light Armor Plating Sensor Drone Bay > --- WEAPON ----------- Heavy Assault Rifle Improved Assault Rifle > --- INVENTORY -------- Heavy Ion Engine Combat Airjet Combat Airjet Large Storage Unit Experimental Sensor Array Advanced Targeting Computer Target Analyzer Hardened Light Armor Plating Improved Light Armor Plating System Shield Improved EM Shotgun Improved Assault Rifle Improved Assault Rifle AWS/Gauss Grenade Launcher Improved Datajack Mining Claw [Rating: 32] Favorites ----------- Power Heavy Ion Engine Engine Heavy Ion Engine Power Core Light Nuclear Core Propulsion Armored Treads Treads Armored Treads Hover Unit Combat Airjet Utility Large Storage Unit Device Seismic Detector Storage Large Storage Unit Processor Visual Processing Unit Protection Utility Shielding Weapon Heavy Assault Rifle Energy Gun Medium Laser Ballistic Gun Heavy Assault Rifle Launcher Grenade Launcher Special Melee Weapon Improved Datajack Build | -11 -10 -10 -9 -9 -9 ------- Run | Scr Mat Min Mat Min Exi Slots Evolved 2 | . . . 2 . . Power . | . . . . . . Propulsion . | . . . . . . Utility 2 | . . . 2 . . Weapon . | . . . . . . Parts Attached 68 | 6 16 6 28 4 8 Power 9 | 1 3 2 3 . . Engine 8 | 1 2 2 3 . . Core 1 | . 1 . . . . Reactor . | . . . . . . Propulsion 12 | 2 1 1 7 . 1 Treads 11 | 2 1 1 7 . . Leg . | . . . . . . Wheel . | . . . . . . Hover 1 | . . . . . 1 Flight . | . . . . . . Utility 21 | 1 6 . 11 1 2 Device 5 | . 4 . . 1 . Storage 3 | 1 1 . . . 1 Processor 4 | . 1 . 2 . 1 Hackware . | . . . . . . Protection 9 | . . . 9 . . Artifact . | . . . . . . Weapon 26 | 2 6 3 7 3 5 Energy Gun 1 | 1 . . . . . Energy Cannon . | . . . . . . Ballistic Gun 21 | 1 5 3 7 2 3 Ballistic Cannon . | . . . . . . Launcher 3 | . 1 . . 1 1 Special Weapon . | . . . . . . Impact Weapon . | . . . . . . Slashing Weapon . | . . . . . . Piercing Weapon . | . . . . . . Special Melee Weapon 1 | . . . . . 1 Unidentified Prototypes 1 | . . . . 1 . Parts Lost 13 | . 1 1 9 . 2 Power . | . . . . . . Propulsion 4 | . 1 . 2 . 1 Utility 4 | . . . 4 . . Weapon 5 | . . 1 3 . 1 Highest Loss Streak 6 | . 1 1 6 . 2 To Critical Strikes 2 | . . . . . 2 Average Slot Usage (%) 98 | . 98 100 94 100 99 Engine 11 | . 10 14 10 11 11 Treads 23 | . 27 28 21 22 21 Device 7 | . 9 14 3 10 5 Storage 11 | . 14 14 11 11 11 Processor 3 | . 3 . 6 . 5 Protection 14 | . . . 19 22 22 Ballistic Gun 21 | . 26 28 21 20 13 Launcher 1 | . . . . 1 4 Naked Turns . | . . . . . . Heaviest Build 74 | 14 34 33 40 54 74 Greatest Support 40 | 40 40 40 40 40 40 Greatest Overweight (x) 1 | . 1 . 1 1 1 Average Overweight (x) . | . . . . . 1 Largest Inventory Capacity 20 | 8 15 15 15 15 20 Average Capacity 15 | 7 14 15 15 15 19 Most Carried 19 | 2 15 15 15 15 19 Average Carried 14 | 1 12 14 14 14 15 Final Capacity 20 | 8 15 15 15 15 20 Final Carried 15 | 2 15 15 15 15 12 Class Distribution -------------------- 80% | Mutant 19% | Scavenger-Mutant Dominant Class ---------------- Mutant | -10/Materials Scavenger-Mutant | -10/Mines Mutant | -9/Materials Mutant | -9/Mines Mutant | -9/Exiles Resources | -11 -10 -10 -9 -9 -9 ----------- Run | Scr Mat Min Mat Min Exi Matter Collected 2078 | 308 541 229 928 72 . Remotely . | . . . . . . Salvage Created 2856 | 168 760 275 1649 4 . Parts 170 | 7 52 10 101 . . Haulers Intercepted 6 | . 2 . 4 . . Recyclers Shooed 2 | . . . 2 . . Parts Field Recycled . | . . . . . . Retrieved Matter . | . . . . . . Parts Self-Destructed . | . . . . . . Prevented . | . . . . . . Kills | -11 -10 -10 -9 -9 -9 ------- Run | Scr Mat Min Mat Min Exi Combat Hostiles Destroyed 54 | . 17 4 26 2 5 Guns 43 | . 13 4 26 . . AOE 11 | . 4 . . 2 5 Classes Destroyed 11 | 3 6 . 1 1 . Worker 7 | 2 1 . 4 . . Builder 2 | . 1 . 1 . . Tunneler 4 | 3 1 . . . . Hauler 6 | . 2 . 4 . . Recycler 5 | 1 1 1 2 . . Operator 1 | . 1 . . . . Watcher 7 | . 3 . 4 . . Swarmer 10 | . 6 . 4 . . Grunt 28 | . 11 4 13 . . Sentry 9 | . . . 9 . . Assembled 7 | . . . . 2 5 Best Kill Streak 5 | 3 5 2 4 2 5 Combat Bots Only 5 | . 4 2 3 2 5 Max Kills in Single Turn 3 | 1 3 1 2 1 1 Gunslinging 1 | . 1 . 1 . . Exploded 3 | . 3 . . 1 1 Melee . | . . . . . . Uniques/NPCs Destroyed . | . . . . . . Combat | -11 -10 -10 -9 -9 -9 -------- Run | Scr Mat Min Mat Min Exi Damage Taken 3842 | . 710 211 1929 110 882 Core 523 | . 93 12 308 24 86 Absorbed by Shields . | . . . . . . Redirected to Shielding 86 | . . . 70 3 13 Regen/Repaired (Parts) 220 | . . . 220 . . Core Remaining (%) 79 | 100 . 58 . . . Volleys Fired 257 | 16 82 13 117 4 25 Largest 2 | 2 2 2 2 2 2 Hottest 70 | 70 70 43 46 46 46 Shots Fired 495 | 32 158 26 231 6 42 Gun 484 | 32 156 26 231 4 35 Cannon . | . . . . . . Launcher 11 | . 2 . . 2 7 Special . | . . . . . . Kinetic 466 | 16 154 26 231 4 35 Thermal 18 | 16 2 . . . . Explosive 11 | . 2 . . 2 7 Electromagnetic . | . . . . . . Robot Hit Streak 14 | 7 9 5 11 8 14 Robot Miss Streak 4 | 4 4 2 3 4 2 Penetration Max . | . . . . . . Secondary Targets 5 | . 1 . 4 . . Max Gunslinging Chain 1 | . 1 . 1 . . Shots Hit Robots 323 | 16 92 18 158 2 37 Core Hits 136 | 7 40 9 58 4 18 Critical Kills 1 | . 1 . . . . Critical Parts Destroyed . | . . . . . . Critical Strikes 3 | 2 1 . . . . Burn 2 | 2 . . . . . Destroy 1 | . 1 . . . . Melee Attacks 4 | . . . . . 4 Impact . | . . . . . . Slashing . | . . . . . . Piercing . | . . . . . . Sneak Attacks 4 | . . . . . 4 Combat Hostiles . | . . . . . . Follow-up Attacks . | . . . . . . Damage Inflicted 5478 | 199 1537 258 2558 119 807 Guns 4685 | 199 1212 258 2558 32 426 Cannons . | . . . . . . Explosions 793 | . 325 . . 87 381 Melee . | . . . . . . Ramming . | . . . . . . Kinetic 4548 | 87 1187 258 2558 32 426 Thermal 137 | 112 25 . . . . Explosive 793 | . 325 . . 87 381 Electromagnetic . | . . . . . . Impact . | . . . . . . Slashing . | . . . . . . Piercing . | . . . . . . Highest Corruption . | . . . . . . Average Corruption . | . . . . . . Corruption Purged . | . . . . . . Corruption Blocked . | . . . . . . Overload Shots . | . . . . . . Overflow Damage 20 | . 19 . . . 1 Projectiles . | . . . . . . Explosions 20 | . 19 . . . 1 Melee . | . . . . . . Knockbacks . | . . . . . . Impact . | . . . . . . Kinetic . | . . . . . . Secondary . | . . . . . . Self-Inflicted Damage 92 | . 80 . . . 12 Shots 3 | . 2 . . . 1 Rammed . | . . . . . . Targets Rammed . | . . . . . . Kicked . | . . . . . . Crushed . | . . . . . . Highest Temperature 125 | 72 9 11 125 . . Average Temperature 28 | 30 2 4 37 . . Received Heat Transfer 996 | . 258 99 639 . . Siege Activations . | . . . . . . Robots Corrupted . | . . . . . . Combat Hostiles . | . . . . . . Parts Fried . | . . . . . . Impact Corruptions . | . . . . . . Robots Melted . | . . . . . . Combat Hostiles . | . . . . . . Parts Melted 2 | . . . 2 . . Heat Transferred 555 | 481 74 . . . . Parts Sabotaged . | . . . . . . Parts Stolen . | . . . . . . Parts Stripped . | . . . . . . Power Chain Reactions . | . . . . . . Missiles Intercepted . | . . . . . . Alert | -11 -10 -10 -9 -9 -9 ------- Run | Scr Mat Min Mat Min Exi Peak Influence 434 | 30 398 184 434 169 . Initial 169 | . 19 114 . 169 . Average 141 | 10 199 69 195 57 . Maximum Alert Level 2 | . 1 . 2 . . Low Security (%) 68 | 100 47 100 46 100 . Level 1 31 | . 52 . 52 . . Level 2 . | . . . 1 . . Level 3 . | . . . . . . Level 4 . | . . . . . . Level 5 . | . . . . . . High Security . | . . . . . . Max Security . | . . . . . . Squads Dispatched 8 | . 4 1 3 . . Investigation 7 | . 3 1 3 . . Extermination . | . . . . . . Reinforcement 1 | . 1 . . . . Assault . | . . . . . . Garrison . | . . . . . . Intercept . | . . . . . . Searches Triggered . | . . . . . . Construction Impeded . | . . . . . . Haulers Reinforced . | . . . . . . Active Scanning Responses . | . . . . . . Cargo Convoy Interrupts . | . . . . . . Stealth | -11 -10 -10 -9 -9 -9 --------- Run | Scr Mat Min Mat Min Exi Distress Signals 5 | . 3 . 2 . . Communications Jammed . | . . . . . . Distress Signals . | . . . . . . Times Spotted 88 | . 28 5 42 6 7 Peak Tracking Total 16 | . 5 2 6 16 9 Tactical Retreats 4 | . 2 . 2 . . Traps | -11 -10 -10 -9 -9 -9 ------- Run | Scr Mat Min Mat Min Exi Traps Triggered 3 | . . . 3 . . Indirectly . | . . . . . . Trap Hack Attempts . | . . . . . . Triggered . | . . . . . . Disarmed . | . . . . . . Reprogrammed 6 | . 6 . . . . Reused . | . . . . . . Traps Extracted . | . . . . . . Installed . | . . . . . . Triggered . | . . . . . . Exploded 3 | . . . . . 3 Machines | -11 -10 -10 -9 -9 -9 ---------- Run | Scr Mat Min Mat Min Exi Machines Disabled 8 | . 2 . 1 1 4 Max in Single Turn 2 | . 1 . 1 1 2 Machines Sabotaged . | . . . . . . Garrisons Compromised . | . . . . . . Overloaded Fab Kills . | . . . . . . Hacking | -11 -10 -10 -9 -9 -9 --------- Run | Scr Mat Min Mat Min Exi Machines Accessed 29 | . 10 1 15 1 2 Terminals 17 | . 7 . 10 . . Fabricators . | . . . . . . Repair Stations 3 | . 1 . 2 . . Recycling Units 4 | . 2 . 2 . . Scanalyzers 1 | . . . 1 . . Garrison Access . | . . . . . . Total Hacks 84 | . 37 1 43 1 2 Successful 52 | . 19 1 29 1 2 Failed 31 | . 17 . 14 . . Catastrophic 2 | . . . 2 . . Database Lockouts 1 | . 1 . . . . Manual 42 | . 22 . 19 . 1 Terminals 58 | . 29 . 29 . . Fabricators . | . . . . . . Repair Stations 12 | . 4 . 8 . . Recycling Units 8 | . 4 . 4 . . Scanalyzers 2 | . . . 2 . . Garrison Access . | . . . . . . Terminal Hacks 22 | . 9 1 9 1 2 Record 1 | . . . . . 1 Robot Analysis 5 | . 3 . 2 . . Prototype ID Bank 5 | . 2 . 3 . . Open Door 2 | . . 1 . 1 . Level Access Points 1 | . . . 1 . . Branch Access Points 2 | . 1 . 1 . . Terminal Index 1 | . . . 1 . . Locate Traps 2 | . 1 . 1 . . Reprogram Traps 1 | . 1 . . . . Zone Layout 1 | . 1 . . . . EX-Prototype ID Bank 1 | . . . . . 1 Fabricator Hacks . | . . . . . . Repair Station Hacks 10 | . 2 . 8 . . Scan Component 6 | . 2 . 4 . . Repair 4 | . . . 4 . . Recycling Unit Hacks 3 | . 1 . 2 . . Retrieve Components 3 | . 1 . 2 . . Scanalyzer 2 | . . . 2 . . Insert Component 1 | . . . 1 . . Analyze 1 | . . . 1 . . Garrison Access Hacks . | . . . . . . Unauthorized Hacks 15 | . 7 . 8 . . Terminals 14 | . 7 . 7 . . Assimilate 1 | . . . 1 . . Botnet 11 | . 6 . 5 . . Operators 2 | . 1 . 1 . . Fabricators . | . . . . . . Repair Stations . | . . . . . . Recycling Units 1 | . . . 1 . . Recyclers 1 | . . . 1 . . Scanalyzers . | . . . . . . Garrison Access . | . . . . . . Data Cores Recovered . | . . . . . . Used . | . . . . . . Hacking Detections 22 | . 8 . 14 . . Full Trace Events 7 | . 5 . 2 . . Feedback Events . | . . . . . . Feedback Blocked . | . . . . . . Robot Schematics Acquired . | . . . . . . Robots Built . | . . . . . . Authchips . | . . . . . . Time . | . . . . . . Total Robot Build Rating . | . . . . . . Part Schematics Acquired 1 | . . . 1 . . Parts Built . | . . . . . . Authchips . | . . . . . . Time . | . . . . . . Total Part Build Rating . | . . . . . . Parts Repaired 4 | . . . 4 . . Time 116 | . . . 116 . . Parts Recycled . | . . . . . . Recycled Matter . | . . . . . . Retrieved Matter . | . . . . . . Retrieved Components 16 | . 3 . 13 . . Parts Scanalyzed 1 | . . . 1 . . Part Schematics Acquired 1 | . . . 1 . . Parts Damaged . | . . . . . . Bothacking | -11 -10 -10 -9 -9 -9 ------------ Run | Scr Mat Min Mat Min Exi Used RIF Installer . | . . . . . . Robots Hacked 4 | . . . . . 4 Non-combat 3 | . . . . . 3 Combat 1 | . . . . . 1 Robot Hacks Applied 4 | . . . . . 4 parse_system 4 | . . . . . 4 Relay Couplers Released . | . . . . . . Fabnet Peak Effective % . | . . . . . . Robots Rewired . | . . . . . . Allies Hacked . | . . . . . . Hacks Repelled . | . . . . . . Allies | -11 -10 -10 -9 -9 -9 -------- Run | Scr Mat Min Mat Min Exi Total Allies 1 | . . . 1 . . Largest Group 1 | . . . 1 . . Highest-Rated Group 10 | . . . 10 . . Highest-Rated Ally 10 | . . . 10 . . Total Orders 1 | . . . 1 . . STAY 1 | . . . 1 . . Ally Attacks . | . . . . . . Total Damage . | . . . . . . Kills . | . . . . . . Allies Corrupted . | . . . . . . Allies Melted . | . . . . . . Intel | -11 -10 -10 -9 -9 -9 ------- Run | Scr Mat Min Mat Min Exi Robot Analysis Total 5 | . 3 . 2 . . Derelict Logs Recovered 4 | . . 1 . 3 . Drone Launches 1 | . . . . 1 . Drone Recoveries . | . . . . . . Exploration | -11 -10 -10 -9 -9 -9 ------------- Run | Scr Mat Min Mat Min Exi Turns Passed 7747 | 119 1396 1008 2338 1392 1494 Spaces Moved 3387 | 40 652 586 1011 548 550 Core 3 | 3 . . . . . Treads 3384 | 37 652 586 1011 548 550 Legs . | . . . . . . Wheels . | . . . . . . Hover . | . . . . . . Flight . | . . . . . . Fastest Speed 50 | 50 160 160 160 170 250 Average Speed 192 | 151 160 160 172 248 250 Slowest Speed 250 | 160 240 160 250 250 250 Overloaded Moves . | . . . . . . Propulsion Burnouts . | . . . . . . Robots Hopped . | . . . . . . Cave-ins Triggered . | . . . . . . Exploration Rate (%) 78 | 4 99 99 97 99 72 Regions Visited 5 Branch Regions 3 Pre-discovered Areas 4 | . . . . 3 1 Known Exits Taken 2 | . 1 . 1 . . Unknown Exits Taken 3 | 1 . 1 . 1 . Scrap Searched 3 | . . 1 . 2 . Spaces Dug 9 | . 9 . . . . Terrain Destroyed 48 | . 15 . . 8 25 Melee . | . . . . . . Projectile . | . . . . . . AOE 48 | . 15 . . 8 25 Terrain Rammed . | . . . . . . Walls Destroyed . | . . . . . . Machines Disabled . | . . . . . . Actions | -11 -10 -10 -9 -9 -9 --------- Run | Scr Mat Min Mat Min Exi Total 4143 | 63 854 638 1379 578 631 Wait 291 | . 53 11 186 12 29 Move 3382 | 39 651 585 1010 547 550 Hop . | . . . . . . Pick Up 65 | 2 25 10 18 5 5 Fast Attach 29 | 6 7 3 12 1 . Attach 17 | . 2 2 8 1 4 Detach 10 | . 6 . 1 1 2 Swap 22 | . 7 1 8 2 4 Drop 66 | . 21 13 19 5 8 Fire 257 | 16 82 13 117 4 25 Melee 4 | . . . . . 4 Ram . | . . . . . . Kick . | . . . . . . Crush . | . . . . . . Escape Stasis . | . . . . . . Rewire . | . . . . . . Trap . | . . . . . . Miscellaneous . | . . . . . . Route ------- -11/Scrapyard -10/Materials (discovered 5 exits: *Mat x3 / *Min x2) -10/Mines (discovered 2 exits: *Mat x2) -9/Materials (discovered 5 exits: *Mat x3 / *Min x2) -9/Mines (discovered 4 exits: *Mat x2 / *Exi / *Zio) -9/Exiles (discovered 2 exits: *Min x2) History --------- Turn | Location | Event 34 | -11/Scrapyard | Discovered new exit (range 14) 120 | -11/Scrapyard | Entered Materials 316 | -10/Materials | Build established: Mutant 409 | -10/Materials | Discovered new exit (range 8) 802 | -10/Materials | Discovered new exit (range 6) 812 | -10/Materials | Central database locked down 1039 | -10/Materials | Identified exit to Mines 1097 | -10/Materials | Discovered new exit (range 5) 1341 | -10/Materials | Discovered new exit (range 16) 1516 | -10/Materials | Entered Mines 1596 | -10/Mines | Discovered new exit (range 12) 1772 | -10/Mines | A weapon hastily lodged in a ceiling crevice suddenly fell to the ground 1797 | -10/Mines | Joined a pair of Derelicts in attacking an 0b10 outpost 1930 | -10/Mines | Learned location of 1 exit from Materials 2089 | -10/Mines | Met a Derelict shopkeep closing up shop 2153 | -10/Mines | Build established: Scavenger-Mutant 2153 | -10/Mines | Received a Rocket Launcher from a helpful Derelict 2320 | -10/Mines | Discovered new exit (range 12) 2524 | -10/Mines | Entered Materials 2524 | -9/Materials | Evolved 2 slots: Utility x2 2525 | -9/Materials | Identified exit to Mines 2910 | -9/Materials | Discovered new exit (range 13) 3254 | -9/Materials | Discovered new exit (range 5) 3631 | -9/Materials | Core integrity fell below 50% 3652 | -9/Materials | Lost 6 parts (1n3u2w) 3804 | -9/Materials | Lost 3 parts (1n1u1w) 3894 | -9/Materials | Repaired Assault Rifle 3894 | -9/Materials | Build established: Mutant 3927 | -9/Materials | Repaired Imp. Ion Engine 3961 | -9/Materials | Repaired Hvy. Assault Rifle 3991 | -9/Materials | Discovered new exit (range 15) 4038 | -9/Materials | Repaired Utility Shielding 4226 | -9/Materials | Discovered exit to Mines (range 18) 4478 | -9/Materials | Identified exit to Materials 4862 | -9/Materials | Entered Mines 4875 | -9/Mines | Found the Drone Emporium 4883 | -9/Mines | Found Prototype Device 4883 | -9/Mines | Identified Sensor Drone Bay 5023 | -9/Mines | Found a damaged Exp. Sensor Array with a note attached 5029 | -9/Mines | Found Prototype Device 5282 | -9/Mines | A Derelict revealed a hidden shortcut to a safe place 5317 | -9/Mines | Identified exit to Zion 5345 | -9/Mines | Assembled infested the area 5350 | -9/Mines | Core integrity fell below 20% 5519 | -9/Mines | Discovered exit to Materials (range 12) 6047 | -9/Mines | Discovered exit to Materials (range 8) 6077 | -9/Mines | Learned location of Storage (-7) 6089 | -9/Mines | Learned Materials garrison access intel 6162 | -9/Mines | Discovered new exit (range 5) 6254 | -9/Mines | Entered Exiles 6254 | -9/Exiles | Accompanied by 1 ally 6294 | -9/Exiles | Discovered new exit (range 15) 6349 | -9/Exiles | Identified exit to Mines 6416 | -9/Exiles | Met 8R-AWN 6453 | -9/Exiles | Met EX-HEX 6616 | -9/Exiles | Met EX-DEC 6661 | -9/Exiles | Learned location of Zion (-7) 6701 | -9/Exiles | Met EX-BIN 6736 | -9/Exiles | Aligned with FarCom system 6738 | -9/Exiles | Given EX-Vault access code 6796 | -9/Exiles | Opened EX-Vault 6808 | -9/Exiles | Found AWS/Gauss 6862 | -9/Exiles | Warned to stay clear of 0b10 Research branches 7014 | -9/Exiles | Discovered exit to Mines (range 14) 7608 | -9/Exiles | Attacked by the Exiles 7748 | -9/Exiles | Destroyed by 8R-AWN with 8R-AWN's Boregun Last Messages --------------- 07708_ HV Slug penetrates Earth. 07708_ Penetrated by HV Slug. 07708_ HV Slug penetrates Earth. 07710_ Penetrated by HV Slug. 07710_ HV Slug penetrates Earth. 07710_ Penetrated by HV Slug. 07719_ Critical hit (Destroy). 07719_ Imp. Assault Rifle destroyed. 07719_ Penetrated by HV Slug. 07721_ Machine disabled. 07722_ Penetrated by HV Slug. 07722_ Critical hit (Destroy). 07722_ Arm. Treads destroyed. 07722_ Penetrated by HV Slug. 07740_ HV Slug penetrates Wall. 07740_ Penetrated by HV Slug. 07743_ Destroyed 8R-AWN's Armor/TH. 07744_ Penetrated by HV Slug. 07744_ HV Slug penetrates Wall. 07748_ Penetrated by HV Slug. Map ----- +----------------------------------------------------+ | ?????????????????????????????????????????????????? | | ?????????????????????????????????????????????????? | | ??????????#####??????????????????????????????????? | | ?????????## ##?????????????????????????????????? | | ?????????# #?????????????????????????????????? | | ?????????# > #?????????????????????????????????? | | ?????????# ###???????????????????????????????? | | ?????????# ! #???????????????????????????????? | | ?????????# /!! #????????????????????????????????? | | ?????????## #????????????????????????????????? | | ??????????# ##???????????????????????????????? | | ??????????## #????????????#######????????????? | | ???????????# #######??????#!!! "#????????????? | | ???????????# #""##?????# "#????????????? | | ???????????## #?????# "#????????????? | | ????????????##" ##???## ""#????????????# | | ????????????#"" #####" ""#???????????? | | ????????????#### ##" ""#????????????" | | ???????????????## # " #?????????????"" | | ????????????????#"## ##???????????#"" | | ????????????????####### ## ###?????#"" | | ??????????????????????### #?????? | | ????????????????########" # #??????" | | ????????????????# !!""""" g # #??????# | | ????????????????#! ## " ##???### | | ????????????????#! @ "#?##" "#####X# | | ????????????????#! ##??#" | | ????????????????# !" ;##???#"# | | ????????????????######;#;##????#### | | ????????????????????# ###?????????### | | ???????????????????# #??????????????### | | ??????????????????# #?????????????????## | | ?????????????????# #???????????????????## | | ????????????????# #?????????????????????##" | | ???????????????? #???????????????????????#""" | | ??????????????? ????????????????????????##" | | ?????????????? ?????????????????????????#"" | | ???????????????????????????????????????##""" | | ???????????????????????????????????????#""" | | ???????????????????????????????????????#""" | | ???????????????????????????????????????#"" | | ???????????????????????????????????????#""" | | ???????????????????????????????????????#"" | | ???????????????????????????????????????##"" | | ????????????????????????????????????????#"""" | | ????????????????????????????????????????## | | ?????????????????????????????????????????#" | | ?????????????????????????????????????????#"""" | | ?????????????????????????????????????????#"" | | ?????????????????????????????????????????#" | +----------------------------------------------------+ Best States ------------- Heat Dissipation 28 Energy Generation 14 Energy Capacity 280 Matter Stores 300 Matter Capacity 300 Sight Range 18 Terrain Scan Range 16 Terrain Scan Density 10 Armor Coverage 300 Utility Shielding 33 Weapon Shielding 33 Evasion (%) 40 Target Analysis 5 Recoil Reduction 2 Item Schematics ----------------- System Shield | -9/Materials | Scanalyzed Robot Schematics ------------------ None Fabricated ------------ Nothing Alien Tech Used ----------------- None Achievements -------------- None Challenges ------------ None Game ------ Seed EnhancedChainBay Manual? 0 Play Time 00:43:54 Cumulative 472.6 hours Start 2022.03.23 @ 09:45:23 End 2022.03.23 @ 10:29:38 Sessions 1 Manual Loads 0 Difficulty Rogue Special Mode None Game No. 385 Rogue 385 Adventurer 0 Explorer 0 Win Type - Total 3 Types 2/0/0/1/0/0/0/0/0 Lore% 68 Gallery% 77 Achievement% 66 Wizard Run 0 Options --------- ASCII 0 Keyboard 1 Movement Numpad Keybinds 0 Fullscreen 1 Font 12/Terminus Map View 83x54 Tactical HUD 1 Map Filters NONE Filters NONE Steam 1 RUN: 6af2590e-9a30-4952-a647-0862e9be3e1b